[Event "Fagernes Chess GM-Swiss 2024"]
[Site "Fagernes"]
[Date "2024.03.24"]
[Round "1.34"]
[White "Panda Sambit"]
[Black "Joel Paul Ganta"]
[Result "1-0"]
[ECO "E94"]
[WhiteElo "2377"]
[BlackElo "1993"]
[Annotator "RC"]
[PlyCount "69"]
[EventDate "2024.03.25"]
[EventType "swiss"]
[EventCountry "NOR"]
[SourceTitle "playchess.com"]
[Source "ChessBase"]
[SourceQuality "1"]
[TimeControl "40/6000+30:2400+30"]

1. d4 {[%emt 0:03:42]} Nf6 {[%emt 0:01:49]} 2. c4 {[%emt 0:00:24]} g6 {[%emt 0:00:08]} 3. Nc3 {[%emt 0:01:29]} Bg7 {[%emt 0:00:03]} 4. e4 {[%emt 0:00:11]} d6 {[%emt 0:00:02]} 5. Be2 {[%emt 0:03:28]} O-O {[%emt 0:01:45]} 6. Nf3 {[%emt 0:00:13]} e5 {[%emt 0:00:02]} 7. O-O {[%emt 0:00:29]} exd4 {[%emt 0:00:02]} 8. Nxd4 {[%emt 0:00:07]} Re8 {[%emt 0:00:01]} 9. f3 {[%emt 0:00:26]} c6 {[%emt 0:00:07]} 10. Nc2 {[%emt 0:01:01]} Na6 {[%emt 0:00:03]} 11. Kh1 {[%emt 0:00:05]} Nc7 {[%emt 0:00:02]} 12. Bg5 {[%emt 0:00:24]} d5 {[%emt 0:13:58]} 13. cxd5 {[%emt 0:08:28]} cxd5 {[%emt 0:01:42]} 14. Qe1 {[%emt 0:00:41]} h6 {[%emt 0:05:06]} 15. Bh4 {[%emt 0:02:33]} g5 {[%emt 0:00:51]} 16. Bg3 {[%emt 0:01:55]} Nh5 {[%emt 0:18:49]} 17. Rd1 {[%emt 0:02:49]} Qe7 {[%emt 0:06:06]} 18. Ne3 {[%emt 0:48:49]} Nxg3+ {[%emt 0:35:21]} 19. Qxg3 {[%emt 0:00:13]} Bxc3 {[%emt 0:00:10]} 20. bxc3 {[%emt 0:00:06]} Qc5 {[%emt 0:09:47]} 21. Nxd5 {[%emt 0:11:44]} Nxd5 {[%emt 0:00:05]} 22. Rxd5 {[%emt 0:00:06]} Qxc3 {[%emt 0:00:11]} 23. Bb5 {[%emt 0:01:33]} Be6 {[%emt 0:03:03]} 24. Rd3 {[%emt 0:01:01]} Qc2 {[%emt 0:01:07]} 25. f4 {[%emt 0:01:16]} Bc4 {[%emt 0:04:35]} 26. Rc3 {[%emt 0:08:46]} Qxc3 {[%emt 0:00:13]} 27. Qxc3 {[%emt 0:00:05]} Bxb5 {[%emt 0:01:10]} 28. fxg5 {[%emt 0:00:31]} Re6 {[%emt 0:04:11]} 29. Rf6 {[%emt 0:07:13]} Rxf6 {[%emt 0:00:04]} 30. gxf6 {[%emt 0:01:33]} Kh7 {[%emt 0:00:56]} 31. Qb3 {[%emt 0:00:09]} Kg6 {[%emt 0:01:34]} 32. Qxb5 {[%emt 0:00:09]} Kxf6 {[%emt 0:00:03]} 33. Qxb7 {[%emt 0:00:19]} Re8 {[%emt 0:00:03]} 34. Qxa7 {[%emt 0:00:35]} Rxe4 {[%emt 0:00:04]} 35. h3 {[%emt 0:00:07]} 1-0

[Event "Fagernes Chess GM-Swiss 2024"]
[Site "Fagernes"]
[Date "2024.03.24"]
[Round "1.35"]
[White "Sachi Jain"]
[Black "Mihajlov, Sebastian"]
[Result "0-1"]
[ECO "C00"]
[WhiteElo "1992"]
[BlackElo "2373"]
[Annotator "RC"]
[PlyCount "78"]
[EventDate "2024.03.25"]
[EventType "swiss"]
[EventCountry "NOR"]
[SourceTitle "playchess.com"]
[Source "ChessBase"]
[SourceQuality "1"]
[TimeControl "40/6000+30:2400+30"]

1. e4 {[%emt 0:01:21]} e6 {[%emt 0:00:44]} 2. d3 {[%emt 0:00:28]} d5 {[%emt 0:00:27]} 3. Nd2 {[%emt 0:00:26]} Nf6 {[%emt 0:00:16]} 4. g3 dxe4 {[%emt 0:02:55]} 5. dxe4 {[%emt 0:01:59]} Nc6 {[%emt 0:00:10]} 6. Bg2 {[%emt 0:00:12]} Bc5 {[%emt 0:00:13]} 7. Ngf3 {[%emt 0:01:40]} e5 {[%emt 0:00:30]} 8. O-O {[%emt 0:00:52]} O-O {[%emt 0:00:10]} 9. c3 {[%emt 0:01:25]} a5 {[%emt 0:01:19]} 10. Qe2 {[%emt 0:03:12]} b6 {[%emt 0:05:01]} 11. Nc4 {[%emt 0:00:32]} Ba6 {[%emt 0:01:11]} 12. b3 {[%emt 0:02:07]} h6 {[%emt 0:08:59]} 13. Rd1 {[%emt 0:03:56]} Qe7 {[%emt 0:05:40]} 14. Qc2 {[%emt 0:04:41]} Bxc4 {[%emt 0:02:36]} 15. bxc4 {[%emt 0:00:21]} Rfd8 {[%emt 0:07:40]} 16. Nh4 {[%emt 0:07:45]} Qe6 {[%emt 0:05:50]} 17. Rd5 {[%emt 0:04:15]} Ne7 {[%emt 0:01:51]} 18. Nf5 {[%emt 0:10:56]} Nfxd5 {[%emt 0:02:07]} 19. cxd5 {[%emt 0:04:46]} Qg6 {[%emt 0:00:19]} 20. Be3 {[%emt 0:04:17]} Nxf5 {[%emt 0:00:18]} 21. exf5 {[%emt 0:00:55]} Qd6 {[%emt 0:00:06]} 22. Qe4 {[%emt 0:03:42]} Bxe3 {[%emt 0:01:17]} 23. Qxe3 {[%emt 0:00:36]} a4 {[%emt 0:02:30]} 24. Re1 {[%emt 0:02:43]} Ra5 {[%emt 0:02:35]} 25. h4 {[%emt 0:04:51]} a3 {[%emt 0:01:58]} 26. g4 {[%emt 0:03:19]} Ra4 {[%emt 0:01:20]} 27. Be4 {[%emt 0:01:45]} Rc4 {[%emt 0:02:23]} 28. g5 {[%emt 0:02:49]} Qc5 {[%emt 0:02:07]} 29. Qe2 {[%emt 0:08:48]} Rxc3 {[%emt 0:09:07]} 30. f6 {[%emt 0:05:54]} g6 {[%emt 0:06:21]} 31. Bxg6 {[%emt 0:16:48]} fxg6 {[%emt 0:00:07]} 32. Qxe5 {[%emt 0:00:02]} Rf3 {[%emt 0:00:25]} 33. Qe6+ {[%emt 0:04:07]} Kh8 {[%emt 0:00:04]} 34. Re2 {[%emt 0:00:06]} Qxd5 {[%emt 0:01:54]} 35. Qe7 {[%emt 0:01:29]} Rg8 {[%emt 0:02:56]} 36. gxh6 {[%emt 0:01:06]} Rf4 {[%emt 0:00:48]} 37. Re3 {[%emt 0:02:24]} Rxh4 {[%emt 0:00:42]} 38. Kf1 {[%emt 0:00:28]} Rh1+ {[%emt 0:00:06]} 39. Ke2 {[%emt 0:00:03]} Qd1# {[%emt 0:00:36]} 0-1

[Event "Fagernes Chess GM-Swiss 2024"]
[Site "Fagernes"]
[Date "2024.03.24"]
[Round "1.36"]
[White "Yaniv, Yuval"]
[Black "Thangavel, Gokul"]
[Result "1/2-1/2"]
[ECO "B12"]
[WhiteElo "2368"]
[BlackElo "1990"]
[Annotator "RC"]
[PlyCount "91"]
[EventDate "2024.03.25"]
[EventType "swiss"]
[EventCountry "NOR"]
[SourceTitle "playchess.com"]
[Source "ChessBase"]
[SourceQuality "1"]
[TimeControl "40/6000+30:2400+30"]

1. e4 {[%emt 0:00:23]} c6 {[%emt 0:00:06]} 2. d4 {[%emt 0:02:18]} d5 {[%emt 0:00:06]} 3. e5 {[%emt 0:01:08]} c5 {[%emt 0:00:10]} 4. c3 {[%emt 0:00:28]} Nc6 {[%emt 0:00:44]} 5. Be2 {[%emt 0:00:19]} cxd4 {[%emt 0:08:17]} 6. cxd4 {[%emt 0:00:23]} Bf5 {[%emt 0:00:05]} 7. Nf3 {[%emt 0:02:30]} e6 {[%emt 0:03:04]} 8. O-O {[%emt 0:03:25]} Nge7 {[%emt 0:05:19]} 9. Nc3 {[%emt 0:04:13]} h6 {[%emt 0:02:34]} 10. a3 {[%emt 0:05:43]} Be4 {[%emt 0:34:20]} 11. Be3 {[%emt 0:31:51]} Nc8 {[%emt 0:27:16]} 12. Nxe4 {[%emt 0:04:52]} dxe4 {[%emt 0:00:05]} 13. Nd2 {[%emt 0:00:11]} Nb6 {[%emt 0:08:33]} 14. Nxe4 {[%emt 0:00:46]} Be7 {[%emt 0:02:26]} 15. Rc1 {[%emt 0:13:12]} O-O {[%emt 0:00:43]} 16. Qd2 {[%emt 0:00:33]} Nd5 {[%emt 0:01:59]} 17. b4 {[%emt 0:04:59]} Nxe3 {[%emt 0:01:19]} 18. fxe3 {[%emt 0:00:28]} Rc8 {[%emt 0:04:20]} 19. Bd3 {[%emt 0:04:27]} Qd5 {[%emt 0:01:04]} 20. Bb1 {[%emt 0:01:13]} a5 {[%emt 0:01:51]} 21. Qd3 {[%emt 0:09:57]} g6 {[%emt 0:00:59]} 22. Rc5 {[%emt 0:03:38]} Qd8 {[%emt 0:00:57]} 23. Rb5 {[%emt 0:02:49]} axb4 {[%emt 0:00:19]} 24. axb4 {[%emt 0:04:02]} b6 {[%emt 0:00:11]} 25. Nd6 {[%emt 0:04:23]} Bxd6 {[%emt 0:00:26]} 26. exd6 {[%emt 0:00:02]} Qxd6 {[%emt 0:00:08]} 27. Rxb6 {[%emt 0:00:31]} Rb8 {[%emt 0:00:27]} 28. Ra6 {[%emt 0:01:31]} Qd5 {[%emt 0:01:30]} 29. Qd2 {[%emt 0:01:22]} Nxb4 {[%emt 0:01:03]} 30. Ra7 {[%emt 0:00:25]} Nc6 {[%emt 0:01:04]} 31. Ra3 {[%emt 0:00:33]} Kg7 {[%emt 0:01:27]} 32. Rc3 {[%emt 0:00:29]} Rb6 {[%emt 0:02:23]} 33. Rc5 {[%emt 0:01:11]} Qd6 {[%emt 0:00:32]} 34. Qf2 {[%emt 0:00:47]} f5 {[%emt 0:01:02]} 35. Rfc1 {[%emt 0:00:14]} Rfb8 {[%emt 0:00:11]} 36. Bd3 {[%emt 0:00:27]} Ne7 {[%emt 0:00:04]} 37. Bc4 {[%emt 0:01:53]} Rb1 {[%emt 0:00:41]} 38. Qc2 {[%emt 0:00:30]} Rxc1+ {[%emt 0:00:18]} 39. Qxc1 {[%emt 0:00:01]} Rb6 {[%emt 0:01:18]} 40. Re5 {[%emt 0:01:38]} Rc6 {[%emt 0:00:09]} 41. Qf1 {[%emt 0:07:28]} Qc7 {[%emt 0:02:43]} 42. Rxe6 {[%emt 0:00:48]} Rxc4 {[%emt 0:00:04]} 43. Rxe7+ {[%emt 0:00:07]} Qxe7 {[%emt 0:00:03]} 44. Qxc4 {[%emt 0:00:09]} Qxe3+ {[%emt 0:00:02]} 45. Kf1 {[%emt 0:00:08]} Qf4+ {[%emt 0:00:34]} 46. Kg1 1/2-1/2

[Event "Fagernes Chess GM-Swiss 2024"]
[Site "Fagernes"]
[Date "2024.03.24"]
[Round "1.37"]
[White "Kaewpitakkun, Pantham"]
[Black "Kenneskog, Theodor"]
[Result "0-1"]
[ECO "B90"]
[WhiteElo "1989"]
[BlackElo "2358"]
[Annotator "RC"]
[PlyCount "118"]
[EventDate "2024.03.25"]
[EventType "swiss"]
[EventCountry "NOR"]
[SourceTitle "playchess.com"]
[Source "ChessBase"]
[SourceQuality "1"]
[TimeControl "40/6000+30:2400+30"]

1. e4 {[%emt 0:00:04]} c5 {[%emt 0:00:10]} 2. Nf3 {[%emt 0:00:03]} d6 {[%emt 0:00:04]} 3. d4 {[%emt 0:00:08]} cxd4 {[%emt 0:00:04]} 4. Nxd4 {[%emt 0:00:06]} Nf6 {[%emt 0:00:04]} 5. Nc3 {[%emt 0:00:07]} a6 {[%emt 0:00:04]} 6. Rg1 {[%emt 0:01:32]} e5 {[%emt 0:00:47]} 7. Nb3 {[%emt 0:00:05]} h5 {[%emt 0:00:48]} 8. Bg5 {[%emt 0:00:19]} Be6 {[%emt 0:03:23]} 9. Qd2 {[%emt 0:00:47]} Nbd7 {[%emt 0:01:23]} 10. O-O-O {[%emt 0:00:31]} Be7 {[%emt 0:03:37]} 11. f4 {[%emt 0:01:00]} b5 {[%emt 0:06:53]} 12. Kb1 {[%emt 0:03:45]} b4 {[%emt 0:15:14]} 13. Nd5 {[%emt 0:02:03]} Nxe4 {[%emt 0:17:10]} 14. Qxb4 {[%emt 0:00:18]} Nxg5 {[%emt 0:01:40]} 15. Nxe7 {[%emt 0:00:30]} Qxe7 {[%emt 0:00:42]} 16. fxg5 {[%emt 0:00:11]} d5 {[%emt 0:00:12]} 17. Qxe7+ {[%emt 0:11:47]} Kxe7 {[%emt 0:00:02]} 18. Be2 {[%emt 0:01:08]} a5 {[%emt 0:07:36]} 19. a4 {[%emt 0:08:00]} Nb6 {[%emt 0:04:09]} 20. Bb5 {[%emt 0:00:53]} Rhc8 {[%emt 0:02:15]} 21. Rde1 {[%emt 0:05:05]} f6 {[%emt 0:06:57]} 22. Rgf1 {[%emt 0:04:05]} Nc4 {[%emt 0:02:07]} 23. h4 {[%emt 0:04:56]} d4 {[%emt 0:06:02]} 24. Bxc4 {[%emt 0:06:59]} Rxc4 {[%emt 0:00:07]} 25. Nd2 {[%emt 0:07:36]} Rxa4 {[%emt 0:00:05]} 26. Ne4 {[%emt 0:01:47]} Rf8 {[%emt 0:01:32]} 27. Rf2 {[%emt 0:01:49]} Ba2+ {[%emt 0:05:47]} 28. Kc1 {[%emt 0:01:31]} Bd5 {[%emt 0:00:06]} 29. Ng3 {[%emt 0:04:03]} Ra1+ {[%emt 0:02:24]} 30. Kd2 {[%emt 0:01:45]} Rxe1 {[%emt 0:00:03]} 31. Kxe1 {[%emt 0:01:17]} g6 {[%emt 0:00:21]} 32. Re2 {[%emt 0:04:52]} Kd6 {[%emt 0:00:42]} 33. c4 {[%emt 0:02:33]} dxc3 {[%emt 0:03:08]} 34. bxc3 {[%emt 0:00:11]} f5 {[%emt 0:00:17]} 35. Nf1 {[%emt 0:02:55]} Rc8 {[%emt 0:03:23]} 36. Kd2 {[%emt 0:01:44]} Bc4 {[%emt 0:09:51]} 37. Re1 {[%emt 0:00:15]} Bxf1 {[%emt 0:00:04]} 38. Rxf1 {[%emt 0:00:05]} Rc4 {[%emt 0:00:04]} 39. g3 {[%emt 0:01:15]} Rg4 {[%emt 0:05:20]} 40. Rb1 {[%emt 0:03:14]} Kc5 {[%emt 0:00:15]} 41. Re1 {[%emt 0:41:53]} e4 {[%emt 0:43:13]} 42. Ra1 {[%emt 0:00:57]} a4 {[%emt 0:00:00]} 43. Ke2 {[%emt 0:00:00]} Kb5 {[%emt 0:00:00]} 44. c4+ {[%emt 0:00:00]} Kb4 {[%emt 0:00:00]} 45. c5 {[%emt 0:00:00]} Rxg3 {[%emt 0:00:00]} 46. Rc1 {[%emt 0:00:00]} Rd3 {[%emt 0:00:00]} 47. c6 {[%emt 0:00:00]} Rd8 {[%emt 0:00:00]} 48. Rb1+ {[%emt 0:00:00]} Kc5 {[%emt 0:00:00]} 49. Ra1 {[%emt 0:00:00]} Kb5 {[%emt 0:00:00]} 50. c7 {[%emt 0:00:00]} Rc8 {[%emt 0:00:00]} 51. Rb1+ {[%emt 0:00:00]} Kc5 {[%emt 0:00:00]} 52. Rc1+ {[%emt 0:00:00]} Kd6 {[%emt 0:00:00]} 53. Ra1 {[%emt 0:00:00]} Rxc7 {[%emt 0:00:00]} 54. Rxa4 {[%emt 0:00:00]} Rc2+ {[%emt 0:00:00]} 55. Ke3 {[%emt 0:00:00]} Rc3+ {[%emt 0:00:00]} 56. Kf2 {[%emt 0:00:00]} Rh3 {[%emt 0:00:00]} 57. Ra6+ {[%emt 0:00:00]} Ke5 {[%emt 0:00:00]} 58. Rxg6 {[%emt 0:00:00]} Rxh4 {[%emt 0:00:00]} 59. Rh6 {[%emt 0:00:00]} f4 {[%emt 0:00:00]} 0-1

[Event "Fagernes Chess GM-Swiss 2024"]
[Site "Fagernes"]
[Date "2024.03.24"]
[Round "1.38"]
[White "Moksh Amit Doshi"]
[Black "Gasland, Lukas Dominik"]
[Result "1-0"]
[ECO "A30"]
[WhiteElo "2353"]
[BlackElo "1985"]
[Annotator "RC"]
[PlyCount "53"]
[EventDate "2024.03.25"]
[EventType "swiss"]
[EventCountry "NOR"]
[SourceTitle "playchess.com"]
[Source "ChessBase"]
[SourceQuality "1"]
[TimeControl "40/6000+30:2400+30"]

1. c4 {[%emt 0:01:03]} c5 {[%emt 0:00:54]} 2. g3 {[%emt 0:00:30]} Nf6 {[%emt 0:00:25]} 3. Bg2 {[%emt 0:00:26]} g6 {[%emt 0:00:07]} 4. Nc3 {[%emt 0:00:39]} Bg7 {[%emt 0:00:21]} 5. e3 {[%emt 0:02:51]} O-O {[%emt 0:01:35]} 6. Nge2 {[%emt 0:00:58]} Nc6 {[%emt 0:03:00]} 7. O-O {[%emt 0:00:30]} d6 {[%emt 0:00:55]} 8. d4 {[%emt 0:00:36]} cxd4 {[%emt 0:02:19]} 9. exd4 {[%emt 0:00:13]} Bf5 {[%emt 0:01:16]} 10. h3 {[%emt 0:01:24]} h5 {[%emt 0:02:41]} 11. b3 {[%emt 0:04:02]} Qd7 {[%emt 0:04:44]} 12. Kh2 {[%emt 0:02:59]} Rac8 {[%emt 0:03:30]} 13. Ba3 {[%emt 0:03:15]} d5 {[%emt 0:15:41]} 14. cxd5 {[%emt 0:02:39]} Na5 {[%emt 0:00:38]} 15. Qd2 {[%emt 0:02:00]} b5 {[%emt 0:01:33]} 16. Nf4 {[%emt 0:04:37]} Bh6 {[%emt 0:02:59]} 17. Rfe1 {[%emt 0:02:18]} Rfe8 {[%emt 0:02:14]} 18. Ne4 {[%emt 0:14:39]} Nxe4 {[%emt 0:17:48]} 19. Bxe4 {[%emt 0:00:54]} Bxe4 {[%emt 0:02:58]} 20. Rxe4 {[%emt 0:00:10]} Bxf4 {[%emt 0:00:13]} 21. Qxf4 {[%emt 0:02:30]} Qxd5 {[%emt 0:01:57]} 22. Bxe7 {[%emt 0:05:28]} Rc2 {[%emt 0:02:59]} 23. Re5 {[%emt 0:02:55]} Qd7 {[%emt 0:03:02]} 24. Bf6 {[%emt 0:02:46]} Nc6 {[%emt 0:04:56]} 25. Rxe8+ {[%emt 0:03:50]} Qxe8 {[%emt 0:00:08]} 26. d5 {[%emt 0:02:20]} Nd8 {[%emt 0:02:57]} 27. Bd4 {[%emt 0:00:46]} 1-0

[Event "Fagernes Chess GM-Swiss 2024"]
[Site "Fagernes"]
[Date "2024.03.24"]
[Round "1.39"]
[White "Makka, Ioulia"]
[Black "Nielsen, Viktor Haarmark"]
[Result "0-1"]
[ECO "C77"]
[WhiteElo "1983"]
[BlackElo "2351"]
[Annotator "RC"]
[PlyCount "110"]
[EventDate "2024.03.25"]
[EventType "swiss"]
[EventCountry "NOR"]
[SourceTitle "playchess.com"]
[Source "ChessBase"]
[SourceQuality "1"]
[TimeControl "40/6000+30:2400+30"]

1. e4 {[%emt 0:00:03]} e5 {[%emt 0:00:13]} 2. Nf3 {[%emt 0:00:13]} Nc6 {[%emt 0:00:06]} 3. Bb5 {[%emt 0:00:16]} a6 {[%emt 0:00:11]} 4. Ba4 {[%emt 0:00:06]} Nf6 {[%emt 0:00:08]} 5. d3 {[%emt 0:00:31]} b5 {[%emt 0:00:12]} 6. Bb3 {[%emt 0:00:08]} Bc5 {[%emt 0:00:09]} 7. a4 {[%emt 0:03:18]} Rb8 {[%emt 0:00:38]} 8. axb5 {[%emt 0:00:43]} axb5 {[%emt 0:00:08]} 9. O-O {[%emt 0:01:08]} d6 {[%emt 0:00:37]} 10. h3 {[%emt 0:01:09]} O-O {[%emt 0:00:16]} 11. c3 {[%emt 0:06:23]} h6 {[%emt 0:02:42]} 12. Re1 {[%emt 0:13:54]} Re8 {[%emt 0:03:55]} 13. Be3 {[%emt 0:06:06]} Bxe3 {[%emt 0:00:51]} 14. fxe3 {[%emt 0:08:18]} Be6 {[%emt 0:03:47]} 15. Bxe6 {[%emt 0:10:16]} Rxe6 {[%emt 0:00:24]} 16. Nbd2 {[%emt 0:01:34]} d5 {[%emt 0:00:57]} 17. exd5 {[%emt 0:02:13]} Qxd5 {[%emt 0:01:51]} 18. d4 {[%emt 0:05:07]} e4 {[%emt 0:01:41]} 19. Nh2 {[%emt 0:00:23]} Ne7 {[%emt 0:09:46]} 20. b3 {[%emt 0:08:51]} Qg5 {[%emt 0:03:10]} 21. Ndf1 {[%emt 0:03:33]} Nf5 {[%emt 0:07:48]} 22. Ra2 {[%emt 0:03:33]} Nd5 {[%emt 0:12:51]} 23. Qd2 {[%emt 0:05:16]} Rc6 {[%emt 0:05:52]} 24. Rc2 {[%emt 0:01:57]} Nh4 {[%emt 0:03:56]} 25. Re2 {[%emt 0:04:05]} Ra8 {[%emt 0:03:31]} 26. c4 {[%emt 0:00:47]} bxc4 {[%emt 0:00:40]} 27. bxc4 {[%emt 0:00:28]} Nb6 {[%emt 0:00:45]} 28. Qc1 {[%emt 0:02:20]} Ra4 {[%emt 0:08:04]} 29. c5 {[%emt 0:03:31]} Nd5 {[%emt 0:00:12]} 30. Ra2 {[%emt 0:04:18]} Rxa2 {[%emt 0:11:13]} 31. Rxa2 {[%emt 0:00:05]} Rg6 {[%emt 0:01:00]} 32. Qd2 {[%emt 0:01:55]} h5 {[%emt 0:01:17]} 33. Kh1 {[%emt 0:02:47]} Nf5 {[%emt 0:05:51]} 34. Ra3 {[%emt 0:00:49]} Kh7 {[%emt 0:03:53]} 35. Qe2 {[%emt 0:02:36]} Nh4 {[%emt 0:00:20]} 36. g3 {[%emt 0:01:44]} Nf5 {[%emt 0:01:18]} 37. g4 {[%emt 0:01:41]} Nf6 {[%emt 0:04:24]} 38. Ra6 {[%emt 0:00:56]} hxg4 {[%emt 0:06:04]} 39. hxg4 {[%emt 0:00:21]} Nh6 {[%emt 0:01:34]} 40. Rc6 {[%emt 0:03:45]} Qh4 {[%emt 0:00:44]} 41. Ra6 {[%emt 0:22:11]} Nhxg4 {[%emt 0:02:46]} 42. Ra2 {[%emt 0:01:12]} Nd5 {[%emt 0:03:37]} 43. Rb2 {[%emt 0:02:28]} Nc3 {[%emt 0:02:54]} 44. Qd2 {[%emt 0:01:02]} Nd1 {[%emt 0:00:28]} 45. Qxd1 {[%emt 0:08:27]} Nf2+ {[%emt 0:00:06]} 46. Rxf2 {[%emt 0:00:08]} Qxf2 {[%emt 0:00:05]} 47. Ng4 {[%emt 0:01:31]} Qh4+ {[%emt 0:04:46]} 48. Nfh2 {[%emt 0:01:37]} Rg5 {[%emt 0:04:43]} 49. Qe2 {[%emt 0:03:13]} f5 {[%emt 0:03:08]} 50. Ne5 {[%emt 0:00:25]} Qg3 {[%emt 0:00:37]} 51. Qf1 {[%emt 0:01:05]} Qxe3 {[%emt 0:00:47]} 52. Nc6 {[%emt 0:02:07]} Qg3 {[%emt 0:01:04]} 53. Ne7 {[%emt 0:00:26]} f4 {[%emt 0:02:37]} 54. d5 {[%emt 0:02:02]} f3 {[%emt 0:00:24]} 55. d6 {[%emt 0:02:04]} f2 {[%emt 0:00:12]} 0-1

[Event "Fagernes Chess GM-Swiss 2024"]
[Site "Fagernes"]
[Date "2024.03.24"]
[Round "1.40"]
[White "Carlsson, Ludvig"]
[Black "Okuno Okuno, Rion"]
[Result "1-0"]
[ECO "D38"]
[WhiteElo "2350"]
[BlackElo "1981"]
[Annotator "RC"]
[PlyCount "69"]
[EventDate "2024.03.25"]
[EventType "swiss"]
[EventCountry "NOR"]
[SourceTitle "playchess.com"]
[Source "ChessBase"]
[SourceQuality "1"]
[TimeControl "40/6000+30:2400+30"]

1. c4 {[%emt 0:00:14]} Nf6 {[%emt 0:00:07]} 2. Nf3 {[%emt 0:01:05]} e6 {[%emt 0:00:09]} 3. Nc3 {[%emt 0:00:18]} d5 {[%emt 0:00:28]} 4. d4 {[%emt 0:00:08]} Bb4 {[%emt 0:00:35]} 5. Bg5 {[%emt 0:01:06]} O-O {[%emt 0:04:12]} 6. e3 {[%emt 0:00:05]} h6 {[%emt 0:01:04]} 7. Bh4 {[%emt 0:01:12]} Nbd7 {[%emt 0:01:48]} 8. cxd5 {[%emt 0:04:28]} exd5 {[%emt 0:00:26]} 9. Bd3 {[%emt 0:00:07]} c6 {[%emt 0:04:43]} 10. O-O {[%emt 0:00:33]} Re8 {[%emt 0:00:45]} 11. Qc2 {[%emt 0:01:44]} Bd6 {[%emt 0:05:49]} 12. Rfe1 {[%emt 0:04:00]} Be7 {[%emt 0:14:44]} 13. Bg3 {[%emt 0:03:15]} Nb6 {[%emt 0:04:21]} 14. a4 {[%emt 0:04:07]} a5 {[%emt 0:02:44]} 15. Nb5 {[%emt 0:00:52]} Bb4 {[%emt 0:04:59]} 16. Nc7 {[%emt 0:14:26]} Bxe1 {[%emt 0:02:16]} 17. Rxe1 {[%emt 0:00:05]} Re7 {[%emt 0:12:34]} 18. Nxa8 {[%emt 0:00:55]} Nxa8 {[%emt 0:00:03]} 19. Qc5 {[%emt 0:04:11]} Be6 {[%emt 0:08:30]} 20. Bh4 {[%emt 0:10:18]} Re8 {[%emt 0:04:27]} 21. Bxf6 {[%emt 0:02:54]} gxf6 {[%emt 0:00:11]} 22. Bb1 {[%emt 0:01:38]} f5 {[%emt 0:06:00]} 23. b3 {[%emt 0:00:50]} Kg7 {[%emt 0:05:11]} 24. g3 {[%emt 0:00:07]} Qb6 {[%emt 0:01:11]} 25. Qc2 {[%emt 0:00:08]} Qb4 {[%emt 0:04:10]} 26. Rc1 {[%emt 0:00:08]} b5 {[%emt 0:03:52]} 27. Nh4 {[%emt 0:07:27]} Qa3 {[%emt 0:01:30]} 28. Rf1 {[%emt 0:00:32]} bxa4 {[%emt 0:02:04]} 29. bxa4 {[%emt 0:00:02]} Nb6 {[%emt 0:00:37]} 30. Qxc6 {[%emt 0:00:30]} Rb8 {[%emt 0:03:07]} 31. Qc7 {[%emt 0:00:08]} Qf8 {[%emt 0:00:22]} 32. Bxf5 {[%emt 0:00:26]} Qd8 {[%emt 0:00:38]} 33. Qe5+ {[%emt 0:00:17]} Kf8 {[%emt 0:00:57]} 34. Bxe6 {[%emt 0:00:54]} fxe6 {[%emt 0:00:03]} 35. Qxe6 {[%emt 0:00:18]} 1-0

[Event "Fagernes Chess GM-Swiss 2024"]
[Site "Fagernes"]
[Date "2024.03.24"]
[Round "1.41"]
[White "Bech, Havard Eriksen"]
[Black "Elmi, Saad Abobaker"]
[Result "0-1"]
[ECO "D37"]
[WhiteElo "1951"]
[BlackElo "2344"]
[Annotator "RC"]
[PlyCount "60"]
[EventDate "2024.03.25"]
[EventType "swiss"]
[EventCountry "NOR"]
[SourceTitle "playchess.com"]
[Source "ChessBase"]
[SourceQuality "1"]
[TimeControl "40/6000+30:2400+30"]

1. d4 {[%emt 0:00:08]} Nf6 {[%emt 0:00:12]} 2. c4 {[%emt 0:00:06]} e6 {[%emt 0:00:21]} 3. Nf3 {[%emt 0:00:09]} d5 {[%emt 0:02:16]} 4. Nc3 {[%emt 0:00:26]} dxc4 {[%emt 0:00:18]} 5. e4 {[%emt 0:00:14]} b5 {[%emt 0:00:16]} 6. e5 {[%emt 0:00:08]} Nd5 {[%emt 0:00:10]} 7. Nxb5 {[%emt 0:00:08]} Nb6 {[%emt 0:00:22]} 8. Be2 {[%emt 0:00:24]} Nc6 {[%emt 0:00:57]} 9. O-O {[%emt 0:00:21]} Be7 {[%emt 0:00:38]} 10. Be3 {[%emt 0:00:10]} O-O {[%emt 0:01:42]} 11. Qc1 {[%emt 0:01:22]} Ba6 {[%emt 0:12:56]} 12. Nc3 {[%emt 0:01:54]} Bb7 {[%emt 0:02:45]} 13. Rd1 {[%emt 0:06:30]} Nb4 {[%emt 0:06:05]} 14. a3 {[%emt 0:05:33]} N4d5 {[%emt 0:01:44]} 15. Nxd5 {[%emt 0:08:05]} Qxd5 {[%emt 0:06:05]} 16. Bf1 {[%emt 0:01:04]} a5 {[%emt 0:42:32]} 17. Nd2 {[%emt 0:26:13]} Ba6 {[%emt 0:00:57]} 18. Qc2 {[%emt 0:02:41]} a4 {[%emt 0:08:44]} 19. Rac1 {[%emt 0:10:54]} Rfb8 {[%emt 0:01:08]} 20. Ne4 {[%emt 0:12:13]} Qc6 {[%emt 0:05:05]} 21. Bg5 {[%emt 0:05:07]} Bf8 {[%emt 0:01:54]} 22. Qe2 {[%emt 0:13:27]} Nd5 {[%emt 0:00:39]} 23. Qg4 {[%emt 0:05:45]} Kh8 {[%emt 0:03:37]} 24. Rd3 {[%emt 0:01:08]} Rb3 {[%emt 0:00:23]} 25. Rxb3 {[%emt 0:02:36]} axb3 {[%emt 0:00:03]} 26. Bd3 {[%emt 0:01:14]} c3 {[%emt 0:01:58]} 27. Bxa6 {[%emt 0:02:19]} Rxa6 {[%emt 0:00:20]} 28. Nxc3 {[%emt 0:00:31]} Nxc3 {[%emt 0:00:41]} 29. Rxc3 {[%emt 0:00:12]} Qxc3 {[%emt 0:00:44]} 30. bxc3 {[%emt 0:00:38]} b2 {[%emt 0:00:08]} 0-1